{"text_format":"1","workbook":"xlsx","n_sheets":11,"sheets":["Strona tytuł.","wykaz faktur","zest. rzecz-finans","zał cześc wspólna ","zał121 szczegół","zał126 szczegół","zał 311oraz 413-311 szczegół","zał 312 oraz 413-312 szczegół","Oświadczenie","Arkusz1","Arkusz2"],"not_rendered":{"charts":0,"images":71,"macros":1,"external_links":0,"defined_names":28,"comments":8,"pivot_tables":0},"unopened":[],"bounds":{"document_bytes":16777216,"sheet_cells":100000,"rows_first":2000,"rows_last":500,"rows_between":2000,"halvings":0,"cell_chars":16384,"cell_head_chars":4096},"cells_cut":0,"cells_raw":0,"read":"whole","date_system":"1900"}

{"sheet":"Strona tytuł.","index":0,"n_rows":157,"n_cols":36,"rows_kept":157,"cut":false,"hidden":false,"merged":[[143,24,144,31],[149,22,150,22],[127,3,127,10],[127,12,127,13],[127,22,127,29],[81,3,81,36],[127,31,127,32],[149,13,150,13],[149,14,150,14],[149,16,150,16],[149,17,150,17],[149,29,150,29],[149,19,150,19],[149,20,150,20],[149,33,150,33],[149,26,150,26],[149,28,150,28],[149,21,150,21],[149,31,150,31],[149,32,150,32],[149,34,150,34],[90,22,90,26],[117,4,117,12],[136,10,136,37],[79,17,79,26],[79,27,79,36],[66,28,66,36],[74,15,74,25],[74,26,74,36],[75,15,75,25],[68,3,68,36],[67,3,67,7],[67,8,67,17],[75,26,75,36],[76,15,76,20],[76,21,76,25],[78,8,78,16],[78,3,78,7],[78,17,78,26],[78,27,78,36],[77,21,77,25],[75,3,75,14],[74,3,74,14],[76,3,76,14],[77,3,77,14],[76,26,76,36],[77,15,77,20],[77,26,77,36],[149,3,150,10],[149,25,150,25],[125,62,126,62],[124,25,125,25],[125,55,126,55],[124,20,125,20],[124,23,125,23],[125,49,126,49],[124,30,125,30],[125,54,126,54],[124,36,125,36],[125,40,126,40],[125,44,126,44],[125,42,126,42],[125,60,126,60],[125,61,126,61],[124,16,125,16],[124,17,125,17],[124,18,125,18],[124,19,125,19],[124,35,125,35],[125,57,126,57],[125,58,126,58],[125,48,126,48],[87,27,87,36],[88,27,88,36],[125,43,126,43],[125,59,126,59],[120,30,121,30],[90,3,90,15],[90,16,90,21],[90,27,90,36],[120,27,121,27],[124,21,125,21],[125,52,126,52],[125,41,126,41],[125,56,126,56],[120,36,121,36],[125,4,125,12],[125,14,125,15],[124,26,125,26],[124,31,125,31],[124,22,125,22],[124,27,125,27],[124,28,125,28],[113,4,113,12],[97,4,97,16],[94,3,94,36],[125,47,126,47],[125,50,126,50],[125,53,126,53],[120,33,121,33],[125,46,126,46],[124,33,125,33],[125,45,126,45],[125,51,126,51],[124,34,125,34],[120,34,121,34],[121,4,121,12],[120,28,121,28],[113,14,113,15],[91,8,91,17],[103,3,103,36],[104,3,104,36],[109,4,109,12],[109,14,109,15],[99,3,99,15],[100,27,100,36],[101,3,101,17],[92,18,92,27],[100,3,100,15],[100,16,100,26],[101,18,101,36],[99,16,99,26],[120,35,121,35],[93,3,93,36],[102,3,102,17],[102,18,102,36],[99,27,99,36],[120,31,121,31],[0,0,0,39],[17,1,17,38],[23,34,24,34],[12,1,12,25],[12,26,12,38],[14,27,14,37],[13,1,13,25],[8,1,8,25],[11,1,11,25],[9,28,9,37],[15,1,15,25],[15,26,15,38],[24,6,24,22],[9,3,9,24],[11,26,11,38],[20,2,20,37],[13,26,13,38],[22,2,22,36],[18,1,18,38],[16,1,16,38],[72,3,72,36],[55,27,56,36],[63,3,63,15],[63,16,63,26],[63,27,63,36],[62,3,62,15],[62,16,62,26],[62,27,62,36],[55,11,56,20],[89,27,89,36],[92,28,92,36],[92,3,92,7],[91,18,91,27],[92,8,92,17],[79,3,79,7],[85,27,85,36],[79,8,79,16],[85,3,85,15],[85,16,85,26],[80,3,80,36],[91,28,91,36],[91,3,91,7],[87,3,87,15],[83,4,83,14],[88,3,88,15],[88,16,88,26],[89,16,89,21],[89,22,89,26],[86,3,86,15],[89,3,89,15],[86,16,86,26],[87,16,87,26],[86,27,86,36],[50,4,50,18],[47,26,48,26],[47,14,48,14],[47,21,48,21],[65,27,65,36],[40,4,40,36],[36,7,37,33],[45,2,46,30],[47,25,48,25],[47,28,48,28],[47,29,48,29],[47,30,48,30],[47,15,48,15],[47,16,48,16],[47,17,48,17],[47,18,48,18],[64,3,64,15],[64,16,64,21],[52,11,53,36],[65,3,65,15],[65,16,65,21],[26,6,27,37],[23,36,24,36],[69,3,69,36],[67,28,67,36],[67,18,67,27],[66,3,66,7],[66,8,66,17],[28,6,28,34],[30,6,30,35],[66,18,66,27],[47,32,48,32],[47,27,48,27],[58,22,58,32],[47,13,48,13],[47,24,48,24],[47,19,48,19],[47,20,48,20],[39,3,39,35],[47,31,48,31],[32,6,32,33],[64,27,64,36],[65,22,65,26],[33,7,34,33],[64,22,64,26]]}
[]
[]
[]
[]
[]
[]
[]
[]
[]
[null,null,null,"Agencja Restrukturyzacji i Modernizacji Rolnictwa",null,null,null,null,null,null,null,null,null,null,null,null,null,null,null,null,null,null,null,null,null,null,null,null,"W-2/PROW 2007-2013"]
[]
[null,"WNIOSEK O PŁATNOŚĆ",null,null,null,null,null,null,null,null,null,null,null,null,null,null,null,null,null,null,null,null,null,null,null,null,"Potwierdzenie przyjęcia \nwniosku\n/pieczęć/"]
[]
[null,null,null,null,null,null,null,null,null,null,null,null,null,null,null,null,null,null,null,null,null,null,null,null,null,null,"……………………………………….."]
[null,null,null,null,null,null,null,null,null,null,null,null,null,null,null,null,null,null,null,null,null,null,null,null,null,null,null,"Data przyjęcia i podpis"]
[]
[null,"Uwaga:"]
[null,"Jeżeli w trakcie realizacji operacji ulegnie zmianie przedmiot operacji wybrany na etapie ubiegania się o przyznanie pomocy (tj. Beneficjent nie zakupił dokładnie tej samej rzeczy jak określona w zestawieniu rzeczowo-finansowym stanowiącym załącznik do umowy przyznania pomocy w zakresie m.in. rodzaju, modelu, parametrów), Beneficjent zobowiązany jest do przeprowadzenia nowego postępowania ofertowego (jeżeli dotyczy) i wystąpienia do Agencji, najpóźniej w dniu złożenia wniosku o płatność z prośbą o aneksowanie umowy w zakresie zmiany zestawienia rzeczowego operacji (wraz z kopią dokumentacji związanej z postępowaniem ofertowym, tj. zapytań ofertowych, ofert i uzasadnienia wyboru oferty – jeżeli dotyczy)."]
[null,"FORMULARZ WNIOSKU O PŁATNOŚĆ NALEŻY WYPEŁNIĆ ZGODNIE Z INSTRUKCJĄ DO WNIOSKU O PŁATNOŚĆ"]
[]
[null,null,"I. IDENTYFIKACJA DZIAŁANIA, W RAMACH KTÓREGO BENEFICJENT SKŁADA WNIOSEK O PŁATNOŚĆ "]
[]
[" ",null,"Wniosek o płatność dotyczy realizacji operacji w działaniu: "]
[]
[null,null,"1. ",null,null,null,"Modernizacja gospodarstw rolnych - 121 "]
[]
[null,null,"2.",null,null,null,"Przywracanie potencjału produkcji rolnej zniszczonego w wyniku wystąpienia klęsk żywiołowych oraz wprowadzenie odpowiednich działań zapobiegawczych - 126"]
[]
[null,null,"3.",null,null,null,"Różnicowanie w kierunku działalności nierolniczej - 311"]
[]
[null,null,"4.",null,null,null,"Tworzenie i rozwój mikroprzedsiębiorstw - 312 "]
[]
[null,null,"5.",null,null,null,"Wdrażanie lokalnych strategii rozwoju - 413 "]
[null,null,null,null,null,null,"1)","dla operacji, które odpowiadają warunkom przyznania pomocy w ramach działania Różnicowanie w kierunku działalności nierolniczej"]
[]
[]
[null,null,null,null,null,null,"2)","dla operacji, które odpowiadają warunkom przyznania pomocy w ramach działania Tworzenie i rozwój mikroprzedsiębiorstw"]
[]
[]
[null,null,null,"objętym Programem Rozwoju Obszarów Wiejskich na lata 2007-2013 "]
[]
[]
[]
[null,null,"II. IDENTYFIKACJA BENEFICJENTA ORAZ DANE FINANSOWE OPERACJI"]
[]
[null,null,"Osoba wiodąca (dotyczy Beneficjentów działania 121 - osób wspólnie wnioskujących)      ",null,null,null,null,null,null,null,null,null,null,null,null,null,null,null,null,null,null,null,null,null,null,null,null,null,null,null,null,null,"tak",null,null,"nie"]
[]
[]
[null,null,null,"1.","Numer Identyfikacyjny"]
[]
[null,null,null,"2. ","Dane identyfikacyjne Beneficjenta"]
[]
[]
[null,null,null,null,"2.1 Nazwisko/Nazwa"]
[]
[null,null,null,null,"2.2 Pierwsze imię",null,null,null,null,null,null,null,null,null,null,null,null,null,null,null,null,null,null,null,"2.3 Drugie imię"]
[]
[]
[null,null,null,null,"2.4 NIP",null,null,null,null,null,null,null,null,null,null,null,null,null,null,null,null,"*","wypełnić jeżeli dotyczy - patrz instrukcja"]
[]
[null,null,null,"3. "," Adres zamieszkania/adres siedziby/adres prowadzenia działalności"]
[]
[null,null,null,"3.1 Województwo",null,null,null,null,null,null,null,null,null,null,null,null,"3.2 Powiat ",null,null,null,null,null,null,null,null,null,null,"3.3 Gmina"]
[]
[null,null,null,"3.4 Ulica",null,null,null,null,null,null,null,null,null,null,null,null,"3.5 Nr domu",null,null,null,null,null,"3.6 Nr lokalu",null,null,null,null,"3.7 Miejscowość"]
[]
[null,null,null,"3.8 Kod pocztowy",null,null,null,null,"3.9 Poczta",null,null,null,null,null,null,null,null,null,"3.10 Nr telefonu",null,null,null,null,null,null,null,null,null,"3.11 Nr faksu"]
[]
[null,null,null,"3.12 Adres e-mail"]
[]
[]
[]
[null,null," ","4. Adres do korespondencji"]
[]
[null,null,null,"4.1 Województwo ",null,null,null,null,null,null,null,null,null,null,null,"4.2. Powiat",null,null,null,null,null,null,null,null,null,null,"4.3. Gmina"]
[]
[null,null,null,"4.4. Ulica",null,null,null,null,null,null,null,null,null,null,null,"4.5. Nr domu",null,null,null,null,null,"4.6. Nr lokalu",null,null,null,null,"4.7. Miejscowość"]
[]
[null,null,null,"4.8. Kod pocztowy",null,null,null,null,"4.9. Poczta",null,null,null,null,null,null,null,null,"4.10. Nr telefonu",null,null,null,null,null,null,null,null,null,"4.11. Nr faksu"]
[]
[null,null,null,"4.12. Adres e-mail"]
[]
[]
[null,null,null,"5.","Dane pełnomocnika Beneficjenta"]
[]
[null,null,null,"5.1 Nazwisko/Nazwa",null,null,null,null,null,null,null,null,null,null,null,null,"5.2 Imię ",null,null,null,null,null,null,null,null,null,null,"5.3 Stanowisko/Funkcja"]
[]
[null,null,null,"5.4 Województwo",null,null,null,null,null,null,null,null,null,null,null,null,"5.5 Powiat ",null,null,null,null,null,null,null,null,null,null,"5.6 Gmina"]
[]
[null,null,null,"5.7 Ulica",null,null,null,null,null,null,null,null,null,null,null,null,"5.8 Nr domu",null,null,null,null,null,"5.9 Nr lokalu",null,null,null,null,"5.10 Miejscowość"]
[]
[null,null,null,"5.11 Kod pocztowy",null,null,null,null,"5.12 Poczta",null,null,null,null,null,null,null,null,null,"5.13 Nr telefonu",null,null,null,null,null,null,null,null,null,"5.14 Nr faksu"]
[]
[null,null,null,"5.15 Adres e-mail"]
[]
[]
[]
[null,null,null,"6.","Dane osoby uprawnionej do kontaktu"]
[]
[null,null,null,"6.1 Nazwisko/Nazwa",null,null,null,null,null,null,null,null,null,null,null,null,"6.2 Imię ",null,null,null,null,null,null,null,null,null,null,"6.3 Stanowisko/Funkcja"]
[]
[null,null,null,"6.4 Nr telefonu",null,null,null,null,null,null,null,null,null,null,null,null,null,null,"6.5 Nr faksu"]
[]
[null,null,null,"6.6 Adres e-mail"]
[]
[]
[]
[null,null,null,"7.","Kwota pomocy z umowy przyznana dla całej operacji (w zł) "]
[]
[null,null,null,null,null,null,null,null,null,null,null,null,null,","]
[]
[null,null,null,"8.","Kwota pomocy z umowy przyznana dla danego etapu (w zł)"]
[]
[null,null,null,null,null,null,null,null,null,null,null,null,null,","]
[]
[null,null,null,"9.","Koszty kwalifikowalne realizacji operacji dla danego etapu w zł (zaokrąglone do pełnych złotych \"w dół\")"]
[]
[]
[]
[null,null,null,"10.","Koszty niekwalifikowalne realizacji operacji dla danego etapu w zł (zaokrąglone do pełnych złotych \"w dół\")"]
[]
[]
[]
[null,null,null,"11.","Wnioskowana kwota pomocy dla danego etapu w zł (z dokładnością do dwóch miejsc po przecinku)"]
[]
[null,null,null,null,null,null,null,null,null,null,null,null,null,","]
[]
[]
[]
[null,null,"III. OGÓLNE DANE"]
[]
[]
[null,null,null,"12.","Nazwa Funduszu:  Europejski Fundusz Rolny na rzecz Rozwoju Obszarów Wiejskich"]
[]
[null,null,null,"13.","Nazwa Programu Operacyjnego: Program Rozwoju Obszarów Wiejskich na lata 2007-2013"]
[]
[null,null,null,"14.","Nazwa działania:"]
[]
[]
[]
[null,null,null,"15.","Nr umowy"]
[]
[]
[]
[null,null,null,"16.","Data zawarcia umowy"]
[]
[null,null,null,null,null," -",null,null," -"]
[]
[]
[null,null,null,"17. Wniosek o płatność za okres:",null,null,null,null,null,null,null,null,null,null,null,"_",null,null,"_",null,null,null,null,null,null,null,null,"_",null,null,"_"]
[null,null,null,null,null,null,null,null,null,null,null,null,"od",null,null,null,null,null,null,null,null,null,null,null,"do"]
[]
[null,null,null,"18.","Rodzaj płatności:",null,null,null,null,null,null,null,"pośrednia"]
[null,null,null,null,null,null,null,null,null,null,null,null,"ostateczna"]
[]
[null,null,null,null,null,null,null,null,null,null,null,null,null,null,null,null,null,null,null,null,null,null,null,null,null,null,null,null,null,null,null,null,null,null,"tak"]
[null,null,null,"19.","Wniosek składany jest przez osoby wspólnie wnioskujące (dotyczy działania 121)"]

{"sheet":"wykaz faktur","index":1,"n_rows":23,"n_cols":13,"rows_kept":23,"cut":false,"hidden":false,"merged":[[2,2,2,12]]}
[]
[]
[null,null,"IV. WYKAZ FAKTUR LUB DOKUMENTÓW O RÓWNOWAŻNEJ WARTOŚCI DOWODOWEJ DOKUMENTUJĄCYCH PONIESIONE KOSZTY KWALIFIKOWALNE"]
[]
[null,null,"Lp.","Nr\ndokumentu","Data \nwystawienia dokumentu\n(dd-mm-rrrr)","NIP wystawcy dokumentu","Nazwa towaru lub usługi\nlub pozycja na dokumencie","Pozycja w \nzestawieniu \nrzeczowo - finansowym","Data zapłaty\n(dd-mm-rrrr) ","Sposób zapłaty G/P/K ","Kwota dokumentu brutto","Kwota dokumentu netto","Kwota wydatków kwalifikowalnych"]
[null,null,null,1,2,3,4,5,6,7,8,9,10]
[null,null,1]
[null,null,2]
[null,null,3]
[null,null,4]
[null,null,5]
[null,null,6]
[null,null,7]
[null,null,8]
[null,null,9]
[null,null,10]
[null,null,11]
[null,null,12]
[null,null,13]
[null,null,14]
[null,null,15]
[null,null,"…"]
[null,null,null,null,null,null,null,null,null,"RAZEM",{"$f":"SUM(K7:K22)","v":0},{"$f":"SUM(L7:L22)","v":0},{"$f":"SUM(M7:M22)","v":0}]

{"sheet":"zest. rzecz-finans","index":2,"n_rows":65,"n_cols":18,"rows_kept":65,"cut":false,"hidden":false,"merged":[[53,2,53,7],[12,2,12,7],[19,2,19,7],[62,2,62,10],[64,2,64,10],[23,4,24,4],[44,4,45,4],[33,2,33,7],[44,8,44,10],[63,2,63,10],[44,1,45,2],[44,3,45,3],[60,2,60,7],[54,2,54,10],[55,1,59,1],[59,2,59,7],[47,2,47,10],[52,2,52,7],[23,3,24,3],[44,5,44,7],[23,8,23,10],[26,2,26,10],[23,1,24,2],[27,3,27,10],[1,11,51,11],[2,8,2,10],[5,2,5,10],[2,3,3,3],[6,3,6,10],[13,3,13,10],[2,1,3,2],[34,3,34,10],[4,1,4,2],[2,5,2,7],[46,1,46,2],[40,2,40,7],[25,1,25,2],[27,1,40,1],[48,1,53,1],[1,1,1,6],[2,4,3,4],[23,5,23,7],[22,1,22,9],[43,1,43,9]]}
[]
[null,"   V. ZESTAWIENIE RZECZOWO - FINANSOWE Z REALIZACJI OPERACJI DLA ETAPU",null,null,null,null,null,"…"]
[null,"Lp",null,"Wyszczególnienie zakresu rzeczowego dla etapu \n(zgodnie z pozycjami zawartymi w umowie)","Zgodność zrealizowanego zakresu rzeczowego z umową  co do rodzaju modelu/marki/typu 1, 2                                                                       (TAK/NIE)","Mierniki rzeczowe",null,null,"Mierniki finansowe"]
[null,null,null,null,null,"jednostka miary","ilość wg umowy","ilość wg \nrozliczenia","etap wg umowy","wg rozliczenia etapu","odchylenia"]
[null,null,null,1,2,3,4,5,6,7,8]
[null,"I","KOSZTY INWESTYCYJNE NIE OBJĘTE LEASINGIEM (Ki)"]
[null,null,"A","Zakup maszyn",null,null,null,null,null,null,null,null,null,null,null,null,null,"TAK"]
[null,null,1,null,null,null,null,null,null,null,null,null,null,null,null,null,null,"NIE "]
[null,null,2]
[null,null,3]
[null,null,4]
[null,null,"…"]
[null,null,"SUMA A",null,null,null,null,null,{"$f":"SUM(I8:I12)","v":0},{"$f":"SUM(J8:J12)","v":0}]
[null,null,"B"]
[null,null,1]
[null,null,2]
[null,null,3]
[null,null,4]
[null,null,"…"]
[null,null,"SUMA B",null,null,null,null,null,{"$f":"SUM(I15:I19)","v":0},{"$f":"SUM(J15:J19)","v":0}]
[]
[]
[null," V. ZESTAWIENIE RZECZOWO - FINANSOWE Z REALIZACJI OPERACJI DLA ETAPU  …."]
[null,"Lp",null,"Wyszczególnienie zakresu rzeczowego dla etapu \n(zgodnie z pozycjami zawartymi w umowie)","Zgodność zrealizowanego zakresu rzeczowego z umową  co do rodzaju modelu/marki/typu 1, 2                                                                       (TAK/NIE)","Mierniki rzeczowe",null,null,"Mierniki finansowe"]
[null,null,null,null,null,"jednostka miary","ilość wg umowy","ilość wg \nrozliczenia","etap wg umowy","wg rozliczenia etapu","odchylenia"]
[null,null,null,1,2,3,4,5,6,7,8]
[null,"I","KOSZTY INWESTYCYJNE NIE OBJĘTE LEASINGIEM (Ki)"]
[null,null,"…."]
[null,null,1]
[null,null,2]
[null,null,3]
[null,null,4]
[null,null,"…"]
[null,null,"SUMA ….",null,null,null,null,null,{"$f":"SUM(I29:I33)","v":0},{"$f":"SUM(J29:J33)","v":0}]
[null,null,"…."]
[null,null,1]
[null,null,2]
[null,null,3]
[null,null,4]
[null,null,"…"]
[null,null,"SUMA ….",null,null,null,null,null,{"$f":"SUM(I36:I40)","v":0},{"$f":"SUM(J36:J40)","v":0}]
[]
[]
[null,"   V. ZESTAWIENIE RZECZOWO - FINANSOWE Z REALIZACJI OPERACJI DLA ETAPU …"]
[null,"Lp",null,"Wyszczególnienie zakresu rzeczowego dla etapu \n(zgodnie z pozycjami zawartymi w umowie)","Zgodność zrealizowanego zakresu rzeczowego z umową  co do rodzaju modelu/marki/typu 1, 2                                                                       (TAK/NIE)","Mierniki rzeczowe",null,null,"Mierniki finansowe"]
[null,null,null,null,null,"jednostka miary","ilość wg umowy","ilość wg \nrozliczenia","etap wg umowy","wg rozliczenia etapu","odchylenia"]
[null,null,null,1,2,3,4,5,6,7,8]
[null,"II","KOSZTY INWESTYCYJNE OBJĘTE LEASINGIEM (Kl) "]
[null,null,1]
[null,null,2]
[null,null,3]
[null,null,"…"]
[null,null,"SUMA II",null,null,null,null,null,{"$f":"SUM(I49:I52)","v":0},{"$f":"SUM(J49:J52)","v":0}]
[null,null,"SUMA POSZCZEGÓLNYCH SUM ZADAŃ INWESTYCYJNYCH (Ki + Kl)",null,null,null,null,null,{"$f":"I13+I20+I34+I41+I53","v":0},{"$f":"J13+J20+J34+J41+J53","v":0}]
[null,"III","KOSZTY OGÓLNE (Ko) ORAZ UDZIELENIA GWARANCJI, O KTÓRYCH MOWA W ART. 56 ROZPORZĄDZENIA NR 1974/2006 (G) 3"]
[null,null,1]
[null,null,2]
[null,null,3]
[null,null,"…",null,null,null,null,null,null,null,null,null,{"$f":"IF('wykaz faktur'!M23='zest. rzecz-finans'!J61,\"suma prawidłowa\",\"suma niezgodna\")","v":"suma prawidłowa"}]
[null,null,"SUMA (Ko) + (G)",null,null,null,null,null,{"$f":"SUM(I56:I59)","v":0},{"$f":"SUM(J56:J59)","v":0}]
[null,"IV","SUMA KOSZTÓW KWALIFIKOWALNYCH OPERACJI (Ki + Kl + Ko+ G)",null,null,null,null,null,{"$f":"I54+I60","v":0},{"$f":"J54+J60","v":0}]
[]
[null,1,"w przypadku pozycji zestawienia rzeczowo-finansowego dotyczących kosztów budowlanych pole to należy pozostawić puste"]
[null,2,"zaznaczenie odpowiedzi \"NIE\" potraktowane zostanie jako złożenie prośby o zmianę umowy w tym zakresie. W takim przypadku, do wniosku o płatność należy dołączyć szczegółowe uzasadnienie do wnioskowanych zmian w umowie "]
[null,3,"koszty udzielenia gwarancji refundowane są jedynie w działaniu 126 \"Przywracanie potencjału produkcji rolnej zniszczonego w wyniku wystąpienia klęsk żywiołowych oraz wprowadzenie odpowiednich działań zapobiegawczych\""]

{"sheet":"zał cześc wspólna ","index":3,"n_rows":33,"n_cols":3,"rows_kept":33,"cut":false,"hidden":false,"merged":[[32,0,32,1],[15,0,20,0],[0,0,0,2],[11,2,12,2],[17,2,18,2],[15,2,16,2],[13,2,14,2],[28,2,30,2],[19,2,20,2]]}
["VI. WYKAZ DOKUMENTÓW JAKIE DOŁĄCZA SIĘ DO WNIOSKU O PŁATNOŚĆ DLA DZIAŁAŃ INWESTYCYJNYCH PROW 2007-2013\nVI. 1. Część wspólna dla działań 121, 126, 311, 312, 413_311, 413_312."]
["LP","Nazwa załącznika","Liczba"]
[1,"Faktury lub dokumenty o równoważnej wartości dowodowej \n- kopie potwierdzone za zgodność z oryginałem przez pracownika Agencji"]
[2,"Dowody zapłaty \n- kopie potwierdzone za zgodność z oryginałem przez pracownika Agencji"]
[3,"Ostateczne pozwolenie na użytkowanie obiektu budowlanego - jeżeli właściwy organ nałożył taki obowiązek w wydanym pozwoleniu na budowę lub nałożył taki obowiązek innymi decyzjami – oryginał lub kopia potwierdzona za zgodność z oryginałem przez pracownika Agencji lub podmiot, który wydał dokument lub notariusza"]
[4,"Zawiadomienie właściwego organu o zakończeniu budowy złożone co najmniej 21 dni przed zamierzonym terminem przystąpienia do użytkowania, jeżeli obowiązek taki wynika z przepisów prawa budowlanego lub właściwy organ nałożył taki obowiązek - oryginał lub kopia potwierdzona za zgodność z oryginałem przez pracownika Agencji lub podmiot, który wydał dokument lub notariusza\nwraz z:\n- Oświadczeniem Beneficjenta, że w ciągu 21 dni od dnia zgłoszenia zakończenia robót, właściwy organ nie wniósł sprzeciwu – oryginał\nalbo \n- Zaświadczeniem wydanym przez właściwy organ, że nie wnosi sprzeciwu w przypadku, gdy zawiadomienie o zakończeniu robót budowlanych będzie przedkładane przed upływem 21 dni  – oryginał lub kopia potwierdzona za zgodność z oryginałem przez pracownika Agencji lub podmiot, który wydał dokument lub notariusza"]
[5,"Ostateczne pozwolenie wodnoprawne – jeżeli dla robót wymagana była decyzja o zatwierdzeniu projektu prac geologicznych - oryginał lub kopia potwierdzona za zgodność z oryginałem przez pracownika Agencji lub podmiot, który wydał dokument lub notariusza"]
[6,"Protokoły odbioru robót lub protokoły montażu lub rozruchu maszyn i urządzeń (jeżeli dotyczy) albo oświadczenie Beneficjenta o poprawnym wykonaniu robót budowlanych lub montażu lub rozruchu z udziałem środków własnych - oryginał lub kopia potwierdzona za zgodność z oryginałem przez pracownika Agencji lub podmiot, który wydał dokument lub notariusza"]
[7,"Kosztorys powykonawczy sporządzony metodą kalkulacji uproszczonej lub szczegółowej w zależności od sposobu wykonywania robót budowlanych z podaniem podstawy wyceny oraz rysunki zamienne do projektu budowlanego, załączane do wniosku o płatność w przypadku, gdy:\n- podczas wykonywania robót budowlanych wprowadzono istotne odstępstwa, o których mowa w art. 36a ustawy z dnia 7 lipca 1994r. Prawo budowlane (Dz. U. 2013 r., poz. 1409, z późn. zm.) \nlub\n- Beneficjent w trakcie realizacji robót budowlanych zmienił system ich wykonywania i nie wszystkie roboty budowlane w ramach operacji zostały zlecone do wykonania i jednocześnie nie zawarto wynikającego z tej zmiany aneksu do umowy; \n– oryginał lub kopia potwierdzona za zgodność z oryginałem przez pracownika Agencji lub podmiot, który wydał dokument lub notariusza"]
[8,"Dowód rejestracyjny, jeżeli jest wymagany odrębnymi przepisami - dotyczy ciągników oraz środków transportu objętych współfinansowaniem  - kopia potwierdzona za zgodność z oryginałem przez pracownika Agencji lub podmiot, który wydał dokument lub notariusza."]
[9,"Dokumentacja dotycząca ewidencji lub wykazu środków trwałych oraz wartości niematerialnych i prawnych – w przypadku wnioskodawców zobowiązanych do prowadzenia takiej ewidencji lub wykazu -  kopia potwierdzona za zgodność z oryginałem przez pracownika Agencji lub podmiot, który wydał dokument lub notariusza jak również przez Beneficjenta."]
[10,"Informacja o numerze rachunku bankowego prowadzonego przez bank lub spółdzielczą kasę oszczędnościowo-kredytową, wskazująca numer rachunku bankowego Beneficjenta lub jego pełnomocnika, na który Agencja przekazuje środki finansowe w ramach pomocy wskazany w:"]
[null," - zaświadczeniu z banku lub spółdzielczej kasy oszczędnościowo-kredytowej, wskazującym numer rachunku bankowego lub rachunku prowadzonego przez spółdzielczą kasę oszczędnościowo-kredytową, na który mają być przekazane środki finansowe - oryginał (dołączany do pierwszego wniosku o płatność)"]
[null,"albo"]
[null," - umowie z bankiem lub spółdzielczą kasą oszczędnościowo-kredytową na prowadzenie rachunku bankowego lub rachunku prowadzonego przez spółdzielczą kasę oszczedniościowo-kredytową, lub jej części, pod warunkiem, że ta część będzie zawierać dane niezbędne do dokonania przelewu środków finansowych. W przypadku, jeśli w ww. umowie będzie wyszczególniony więcej niż jeden numer rachunku bankowego, oświadczenie Beneficjenta, iż jest to rachunek, na który mają być przekazane środki finansowe  - kopia potwierdzona za zgodność z oryginałem przez pracownika Agencji lub podmiot, który wydał dokument lub notariusza (dołączana do pierwszego wniosku o płatność). "]
[null,"albo"]
[null," - oświadczeniu Beneficjenta o innym numerze rachunku bankowego prowadzonego w banku lub rachunku prowadzonego w spółdzielczej kasie oszczędnościowo-kredytowej, na który mają być przekazane środki finansowe, w sytuacji, kiedy Beneficjent nie pobiera płatności bezpośrednich do gruntów rolnych - oryginał (dołączany do pierwszego wniosku o płatność)."]
[null,"albo"]
[null," - oświadczeniu Beneficjenta wskazującym na możliwość wypłaty środków finansowych w ramach pomocy na rachunek bankowy prowadzony w banku lub rachunek prowadzony w spółdzielczej kasie oszczędnościowo-kredytowej, który został podany we wniosku o wpis do ewidencji producentów, złożonym zgodnie z przepisami art. 11 ust. 3 pkt 5 ustawy z dnia 18 grudnia 2003 r.o krajowym systemie ewidencji producentów, ewidencji gospodarstw rolnych oraz ewidencji wniosków o przyznanie płatności (Dz.U. 2012, poz. 86), w sytuacji, kiedy Beneficjent pobiera płatności bezpośrednie do gruntów rolnych - oryginał (dołączany do pierwszego wniosku o płatność). "]
[null,"albo"]
[null,"  - innym dokumencie z banku lub spółdzielczej kasy oszczędnościowo-kredytowej świadczącym o aktualnym numerze rachunku bankowego lub rachunku prowadzonego przez spółdzielczą kasę oszczędnościowo-kredytową, pod warunkiem, że będzie on zawierał dane niezbędne do dokonania przelewu środków finansowych - oryginał lub kopia potwierdzona za zgodność z oryginałem przez pracownika Agencji lub podmiot, który wydał dokument lub notariusza (dołączany do pierwszego wniosku o płatność)."]
[11,"Umowy z dostawcami lub wykonawcami zawierające specyfikację będącą podstawą wystawienia każdej z przedstawionych faktur lub innych dokumentów o równoważnej wartości dowodowej – jeżeli nazwa towaru lub usługi w przedstawionej fakturze lub dokumencie o równoważnej wartości dowodowej odnosi się do umów zawartych przez Beneficjenta lub nie pozwala na precyzyjne określenie kosztów kwalifikowalnych - kopia potwierdzona za zgodność z oryginałem przez pracownika Agencji lub podmiot, który wydał dokument lub notariusza. "]
[12,"Uzasadnienie zmian dokonanych w poszczególnych pozycjach zestawienia rzeczowo – finansowego z realizacji operacji, w przypadku, gdy koszty kwalifikowalne wzrosły o więcej niż 10% w stosunku do wartości zapisanych w zestawieniu rzeczowo-finansowym operacji, stanowiącym załącznik do umowy - oryginał"]
[13,"Wykaz działek, na których zrealizowana została operacja trwale związana z nieruchomością objęta wnioskiem o płatność - na formularzu udostępnionym przez Agencję - oryginał"]
[14,"Dokumenty celne (Jednolity Dokument Administracyjny SAD) zawierające stosowną adnotację celników przeprowadzających odprawę, jako potwierdzenie dopuszczenia towarów do obrotu – dotyczy maszyn i urządzeń zakupionych w krajach nienależących do Unii Europejskiej - kopia potwierdzona za zgodność z oryginałem przez pracownika Agencji lub podmiot, który wydał dokument lub notariusza. "]
[15,"Informacja dotycząca parametrów zakupionej maszyny/urządzenia – na formularzu udostępnionym przez Agencję - oryginał."]
[16,"Pełnomocnictwo – w przypadku, gdy zostało udzielone innej osobie niż podczas składania wniosku o przyznanie pomocy lub gdy zmienił się zakres poprzednio udzielonego pełnomocnictwa – oryginał lub kopia potwierdzona za zgodność z oryginałem przez pracownika Agencji lub podmiot, który wydał dokument lub notariusza. "]
[17,"Umowa cesji wierzytelności - oryginał."]
[18,"Oświadczenie Beneficjenta/Beneficjentów o wyodrębnieniu osobnych kont albo korzystaniu z odpowiedniego kodu rachunkowego w ramach prowadzonych ksiąg rachunkowych w rozumieniu art. 75 ust. 1 lit. c pkt i rozporządzenia Rady (WE) 1698/2005 (Dz. Urz. UE L 277 z 21.10.2005, str. 1, z późn. zm.), dla wszystkich transakcji związanych z operacją – oryginał "]
[null,"albo"]
[null,"Oświadczenie Beneficjenta/Beneficjentów o wyodrębnieniu osobnych kont albo korzystaniu z odpowiedniego kodu rachunkowego wraz z wyciągami z polityki rachunkowości i zakładowego planu kont wraz z wydrukami z kont księgowych w ramach prowadzonych ksiąg rachunkowych w rozumieniu art. 75 ust. 1 lit. c pkt i rozporządzenia Rady (WE) 1698/2005 (Dz. Urz. UE L 277 z 21.10.2005, str. 1, z późn. zm.), dla wszystkich transakcji związanych z operacją – oryginał;"]
[19,"Zestawienie  faktur lub równoważnych dokumentów księgowych, wypełnione przez Beneficjenta/Beneficjentów na formularzu opracowanym i udostępnionym przez Agencję, gdy na podstawie odrębnych przepisów Beneficjent/Beneficjenci nie jest obowiązany/nie są zobowiązani do prowadzenia ksiąg rachunkowych – oryginał."]
["Liczba załączników (ogółem)",null,{"$f":"SUM(C3:C32)","v":0}]

{"sheet":"zał121 szczegół","index":4,"n_rows":18,"n_cols":3,"rows_kept":18,"cut":false,"hidden":false,"merged":[[0,0,0,2],[17,0,17,1],[11,0,12,0],[11,2,12,2]]}
["VI. 2. Część szczegółowa dla działania 121 \"Modernizacja gospodarstw rolnych\" objętego PROW 2007-2013."]
["LP","Nazwa załącznika","Liczba"]
[1,"Sprawozdanie z realizacji operacji (dołączane do wniosku o płatność ostateczną) - na formularzu udostępnionym przez Agencję - oryginał."]
[2,"Zaświadczenie o spełnianiu minimalnych standardów co do higieny i warunków utrzymania zwierząt w gospodarstwie w zakresie objętym operacją  - wystawione przez Powiatowego Lekarza Weterynarii (w przypadku, gdy odrębne przepisy prawa określają, jakie warunki powinny być spełniane przy realizacji inwestycji objętej operacją)  oryginał lub kopia potwierdzona za zgodność z oryginałem przez pracownika Agencji lub podmiot, który wydał dokument lub notariusza. "]
[3,"Informacja o stanie przestrzegania wymagań ochrony środowiska wystawiona przez Wojewódzki Inspektorat Ochrony Środowiska (w przypadku, gdy odrębne przepisy prawa określają, jakie warunki powinny być spełniane przy realizacji inwestycji objętej operacją) - oryginał lub kopia potwierdzona za zgodność z oryginałem przez pracownika Agencji lub podmiot, który wydał dokument lub notariusza. "]
[4,"Ostateczne pozwolenie zintegrowane (w przypadku, gdy odrębne przepisy prawa określają, jakie warunki powinny być spełniane przy realizacji inwestycji objętej operacją) -  kopia potwierdzona za zgodność z oryginałem przez pracownika Agencji lub podmiot, który wydał dokument lub notariusza. "]
[5,"Opinia Powiatowego Inspektora Sanitarnego, co do zgodności z warunkami sanitarnymi określonymi przepisami Unii Europejskiej w zakresie objętym operacją (w przypadku, gdy odrębne przepisy prawa określają, jakie warunki powinny być spełniane przy realizacji inwestycji objętej operacją) - kopia potwierdzona za zgodność z oryginałem przez pracownika Agencji lub podmiot, który wydał dokument lub notariusza.  "]
[6,"Dokument potwierdzający wysokość kwot (limitów) produkcji przyznanych Beneficjentowi na podstawie odrębnych przepisów - jeżeli operacja dotyczyła wzrostu produkcji w dziedzinie objętej kwotowaniem (limitowaniem) produkcji -  kopia potwierdzona za zgodność z oryginałem przez pracownika Agencji lub podmiot, który wydał dokument lub notariusza.  "]
[7,"Dokumenty potwierdzające zaprzestanie produkcji mleka oraz zbycie posiadanej kwoty indywidualnej przed dniem złożenia wniosku o płatność albo pierwszego wniosku o płatność, w przypadku realizacji operacji dotyczącej priorytetu „środki towarzyszące realizacji priorytetu mleczarskiego”, o którym mowa w art. 16a ust. 1 lit. e rozporządzenia Rady (WE) nr 1698/2005 (Dz. Urz. UE L 277 z 21.10.2005, str. 1, z późn. zm.) (dołącza się do wniosku o płatność ostateczną albo do pierwszego wniosku o płatność (pośrednią), jeżeli Beneficjent/Beneficjenci będzie/będą składał/składali więcej niż jeden wniosek o płatność - oryginał lub kopia potwierdzona za zgodność z oryginałem przez pracownika Agencji lub podmiot, który wydał dokument lub notariusza. "]
[8,"Wycena wraz z opinią rzeczoznawcy określająca wartość rynkową zakupionych maszyn i urządzeń używanych oraz potwierdzająca, że są one w pełni sprawne oraz mają właściwości techniczne niezbędne do realizacji operacji i spełniają obowiązujące normy i standardy - oryginał lub kopia potwierdzona za zgodność z oryginałem przez pracownika Agencji lub podmiot, który wydał dokument lub notariusza. "]
[9,"Oświadczenie sprzedającego, określające pochodzenie maszyn lub urządzeń używanych oraz potwierdzające, że:\na) nie były one w dniu sprzedaży starsze niż 5 lat oraz\nb) nie zostały one wcześniej nabyte z wykorzystaniem środków pomocy krajowej lub pochodzących z Unii Europejskiej - oryginał."]
[10,"Dokument potwierdzający, że maszyny lub urządzenia używane zostały zakupione od podmiotu prowadzącego sprzedaż takich maszyn lub urządzeń, przy czym:\na)  w odniesieniu do podmiotów podlegających wpisowi do Krajowego Rejestru Sądowego (dotyczy podmiotów, od których zostały zakupione urządzenia lub maszyny używane), w związku z udostępnieniem na stronie internetowej Ministerstwa Sprawiedliwości, na podstawie art. 4 ust. 4a ustawy o Krajowym Rejestrze Sądowym, aktualnych informacji o podmiotach wpisanych do Krajowego Rejestru Sądowego, nie jest wymagane dostarczenie dokumentu potwierdzającego wykonywanie przez te podmioty działalności gospodarczej w zakresie sprzedaży takich maszyn lub urządzeń. Agencja zweryfikuje spełnienie tego kryterium w oparciu o ww. informacje.   "]
[null,"b) w odniesieniu do podmiotów podlegających wpisowi do systemu rejestracji i ewidencji przedsiębiorców – osób fizycznych (dotyczy podmiotów, od których zostały zakupione urządzenia lub maszyny używane), w związku z utworzeniem i funkcjonowaniem Centralnej Ewidencji i Informacji o Działalności Gospodarczej, nie jest wymagane dostarczenie dokumentu potwierdzającego wykonywanie przez te podmioty działalności gospodarczej w zakresie sprzedaży takich maszyn lub urządzeń. Agencja zweryfikuje spełnienie tego kryterium w oparciu o bazę CEIDG."]
[11,"Wypis ze świadectwa oceny polowej materiału szkółkarskiego lub dokument dostawcy w przypadku, gdy w krajowym rejestrze nie wpisano żadnej odmiany gatunku rośliny uprawnej, który wymieniony jest w wykazie gatunków roślin, których odmiany podlegają rejestracji oraz których materiał siewny może być wytwarzany, oceniany i kontrolowany, ogłoszonym w obwieszczeniu, o którym mowa w art. 1 ust. 3 ustawy z dnia 9 listopada 2012 r. o nasiennictwie (Dz. U. poz. 1512, z późn. zm.), a materiał szkółkarski wyprodukowany został w kategorii CAC -  kopia potwierdzona za zgodność z oryginałem przez pracownika Agencji lub podmiot, który wydał dokument lub notariusza. "]
[12,"Oświadczenie Beneficjenta o założeniu sadu lub plantacji wieloletniej - oryginał."]
[13,"Dokumenty świadczące o powiększeniu gospodarstwa bądź zwiększeniu obsady zwierząt w gospodarstwie - dotyczy przypadków, gdy osiągnięcie celu operacji jest uzależnione od powiększenia gospodarstwa lub zwiększenia obsady zwierząt w gospodarstwie - oryginał lub  kopia potwierdzona za zgodność z oryginałem przez pracownika Agencji lub podmiot, który wydał dokument lub notariusza. "]
[14,"Inne załączniki – jeśli dotyczy"]
["Liczba załączników (ogółem)",null,{"$f":"SUM(C3:C17)","v":0}]

{"sheet":"zał126 szczegół","index":5,"n_rows":15,"n_cols":3,"rows_kept":15,"cut":false,"hidden":false,"merged":[[0,0,0,2],[14,0,14,1]]}
["VI. 3. Część szczegółowa dla działania 126 \"Przywracanie potencjału produkcji rolnej zniszczonego w wyniku wystąpienia klęsk żywiołowych oraz wprowadzenie odpowiednich działań zapobiegawczych\" objętego PROW 2007-2013"]
[1,"Sprawozdanie z realizacji operacji (dołączane do wniosku o płatność ostateczną) - na formularzu udostępnionym przez Agencję - oryginał."]
[2,"Zaświadczenie o spełnieniu minimalnych standardów co do higieny i warunków utrzymania zwierząt w gospodarstwie w zakresie objętym operacją - wystawione przez Powiatowego Lekarza Weterynarii (w przypadku, gdy odrębne przepisy prawa określają, jakie warunki powinny być spełniane przy realizacji inwestycji objętej operacją) - oryginał lub kopia potwierdzona za zgodność z oryginałem przez pracownika Agencji lub podmiot, który wydał dokument lub notariusza. "]
[3,"Informacja o stanie przestrzegania wymagań ochrony środowiska wystawiona przez Wojewódzki Inspektorat Ochrony Środowiska (w przypadku, gdy odrębne przepisy prawa określają, jakie warunki powinny być spełniane przy realizacji inwestycji objętej operacją) - oryginał lub kopia potwierdzona za zgodność z oryginałem przez pracownika Agencji lub podmiot, który wydał dokument lub notariusza. "]
[4,"Ostateczne pozwolenie zintegrowane (w przypadku, gdy odrębne przepisy prawa określają, warunki jakie powinny być spełniane przy realizacji inwestycji objętej operacją) - kopia potwierdzona za zgodność z oryginałem przez pracownika Agencji lub podmiot, który wydał dokument lub notariusza. "]
[5,"Opinia Powiatowego Inspektora Sanitarnego, co do zgodności z warunkami sanitarnymi określonymi przepisami Unii Europejskiej w zakresie objętym operacją (w przypadku, gdy odrębne przepisy prawa określają, jakie warunki powinny być spełniane przy realizacji inwestycji objętej operacją) - kopia potwierdzona za zgodność z oryginałem przez pracownika Agencji lub podmiot, który wydał dokument lub notariusza. "]
[6,"Dokument potwierdzający wysokość kwot (limitów) produkcji przyznanych Beneficjentowi na podstawie odrębnych przepisów - jeżeli operacja dotyczyła wzrostu produkcji w dziedzinie objętej kwotowaniem (limitowaniem) produkcji - kopia potwierdzona za zgodność z oryginałem przez pracownika Agencji lub podmiot, który wydał dokument lub notariusza. "]
[7,"Wypis ze świadectwa oceny polowej materiału szkółkarskiego lub dokument dostawcy w przypadku, gdy w krajowym rejestrze nie wpisano żadnej odmiany gatunku rośliny uprawnej, który wymieniony jest w wykazie gatunków roślin, których odmiany podlegają rejestracji oraz których materiał siewny może być wytwarzany, oceniany i kontrolowany, ogłoszonym w obwieszczeniu, o którym mowa w art. 1 ust. 3 ustawy z dnia 9 listopada 2012 r. o nasiennictwie (Dz. U. poz. 1512, z późn. zm.), a materiał szkółkarski wyprodukowany został w kategorii CAC - kopia potwierdzona za zgodność z oryginałem przez pracownika Agencji lub podmiot, który wydał dokument lub notariusza. "]
[8,"Oświadczenie Beneficjenta o odtworzeniu sadu lub plantacji wieloletniej - oryginał."]
[9,"Polisy ubezpieczeniowe lub inne dokumenty potwierdzające objęcie obowiązkowym ubezpieczeniem, o którym mowa w przepisach o ubezpieczeniach obowiązkowych, Ubezpieczeniowym Funduszu Gwarancyjnym i Polskim Biurze Ubezpieczycieli Komunikacyjnych lub przepisach o ubezpieczeniach upraw rolnych i zwierząt gospodarskich, inwestycji zrealizowanej w ramach działania od ryzyka wystąpienia szkód spowodowanych przez zdarzenia losowe wymienione w art. 3 ust. 2 pkt 2-11a ustawy z dnia 7 lipca 2005 r. o ubezpieczeniach upraw rolnych i zwierząt gospodarskich, w związku z zaistnieniem których przyznano pomoc  - kopia potwierdzona za zgodność z oryginałem przez pracownika Agencji lub podmiot, który wydał dokument lub notariusza. "]
[10,"Oświadczenie Beneficjenta o odszkodowaniach z tytułu ubezpieczenia składników gospodarstwa w tym:\n1) budynków, budowli, maszyn lub urządzeń służących do produkcji rolnej, sadów lub plantacji wieloletnich lub stad podstawowych zwierząt gospodarskich (dotyczy przypadków zawierania umowy przyznania pomocy z Beneficjentami, którzy złożyli wnioski o przyznanie pomocy w roku 2010 oraz 2011);\n2) budynków, budowli, maszyn lub urządzeń służących do produkcji rolnej, sadów lub plantacji wieloletnich, upraw rolnych, stad podstawowych zwierząt gospodarskich, zwierząt gospodarskich niewchodzących w skład stad podstawowych zwierząt gospodarskich lub ryb (dotyczy przypadków zawierania umowy przyznania pomocy z Beneficjentami, którzy złożyli wnioski o przyznanie pomocy w roku 2012 lub w kolejnych latach);\n- uszkodzonych bądź zniszczonych w wyniku zdarzeń losowych wymienionych w art. 3 ust. 2 pkt. 2-11a ustawy z dnia 7 lipca 2005 r. o ubezpieczeniach upraw rolnych i zwierząt gospodarskich, od ryzyka wystąpienia takich okoliczności - na formularzu udostępnionym przez Agencję – oryginał."]
[11,"Decyzje lub inne dokumenty wydane przez właściwe instytucje ubezpieczeniowe stanowiące o odmowie bądź wysokości wypłaconego lub przewidzianego do wypłaty odszkodowania z tytułu ubezpieczenia:\n1) budynków, budowli, maszyn lub urządzeń służących do produkcji rolnej, sadów lub plantacji wieloletnich, lub stad podstawowych zwierząt gospodarskich (dotyczy przypadków zawierania umowy przyznania pomocy z Beneficjentami, którzy złożyli wnioski o przyznanie pomocy w roku 2010 oraz 2011); \n2) budynków, budowli, maszyn lub urządzeń służących do produkcji rolnej, sadów lub plantacji wieloletnich, upraw rolnych, stad podstawowych zwierząt gospodarskich, zwierząt gospodarskich niewchodzących w skład stad podstawowych zwierząt gospodarskich lub ryb (dotyczy przypadków zawierania umowy przyznania pomocy z Beneficjentami, którzy złożyli wnioski o przyznanie pomocy w roku 2012 lub w kolejnych latach);\n- uszkodzonych lub zniszczonych w wyniku wystąpienia okoliczności wymienionych w § 2 pkt 1 rozporządzenia MRiRW z dnia 13 września 2010 r. (Dz. U. z 2013 r., poz. 877), od ryzyka wystąpienia takich okoliczności, dotyczące szkód spowodowanych przez zdarzenia losowe wymienione w art. 3 ust. 2 pkt 2-11a ustawy z dnia 7 lipca 2005 r. o ubezpieczeniach upraw rolnych i zwierząt gospodarskich ) - kopia potwierdzona za zgodność z oryginałem przez pracownika Agencji lub podmiot, który wydał dokument lub notariusza. "]
[12,"Zaświadczenia hodowlane potwierdzające pochodzenie zwierząt osobników hodowlanych, należących do gatunków gospodarskich – w rozumieniu ustawy z dnia 29 czerwca 2007 r. o organizacji hodowli i rozrodzie zwierząt gospodarskich (Dz. U. Nr 133, poz. 921, z późn. zm.), wydane przez podmiot prowadzący księgi zwierząt hodowlanych, albo rejestr zwierząt hodowlanych, w którym jest wpisane zwierzę - kopia potwierdzona za zgodność z oryginałem przez pracownika Agencji lub podmiot, który wydał dokument lub notariusza. "]
[13," Inne załączniki – jeśli dotyczy"]
["Liczba załączników (ogółem)",null,{"$f":"SUM(C2:C14)","v":0}]

{"sheet":"zał 311oraz 413-311 szczegół","index":6,"n_rows":14,"n_cols":3,"rows_kept":14,"cut":false,"hidden":false,"merged":[[13,0,13,1],[0,0,0,2],[2,0,5,0],[8,2,9,2],[8,0,9,0],[10,2,11,2],[10,0,11,0],[2,2,5,2]]}
["\nVI. 4. Część szczegółowa dla działania 311 \"Różnicowanie w kierunku działalności nierolniczej\" oraz działania 413_311 \"Wdrażanie lokalnych strategii rozwoju\" dla operacji, które odpowiadają warunkom przyznania pomocy w ramach działania \"Różnicowanie w kierunku działalności nierolniczej\", objętych PROW 2007-2013."]
["LP","Nazwa załącznika","Liczba"]
[1,"Zaświadczenie o wpisie do ewidencji prowadzonej przez jednostkę samorządu terytorialnego obowiązaną do prowadzenia odpowiedniego typu szkół i placówek publicznych "]
[null,"albo"]
[null,"kopia zezwolenia wydanego na podstawie art. 58 ust. 3 albo art. 59a ustawy z dnia 7 września 1991 r. o systemie oświaty (Dz. U. z 2004 r. Nr 256, poz. 2572, z późn.zm.), "]
[null,"wystawione nie wcześniej niż 3 miesiące przed złożeniem wniosku o płatność, dołączone do wniosku o płatność ostateczną - oryginał lub kopia potwierdzona za zgodność z oryginałem przez pracownika Agencji lub podmiot, który wydał dokument lub notariusza. (dotyczy działalności podlegającej przepisom o systemie oświaty)\n\nW związku z utworzeniem i funkcjonowaniem Centralnej Ewidencji i Informacji o Działalności Gospodarczej w odniesieniu do podmiotów podlegających właściwemu wpisowi, nie jest wymagane dostarczanie dokumentu potwierdzającego zarejestrowanie i prowadzenie działalności gospodarczej zgodnie z Polską Klasyfikacją Działalności (PKD).  Agencja zweryfikuje spełnienie tego kryterium w oparciu o bazę CEIDG. "]
[2,"Zaświadczenie o wpisie do ewidencji innych obiektów, o której mowa w art. 38 ust. 3 ustawy z dnia 29 sierpnia 1997 r. o usługach turystycznych (Dz. U. z 2014 r., poz. 196), dołączane do wniosku o płatność ostateczną - w przypadku, gdy w ramach prowadzonej działalności Beneficjent świadczy usługi hotelarskie w innych obiektach, w których mogą być świadczone usługi hotelarskie - kopia potwierdzona za zgodność z oryginałem przez pracownika Agencji lub podmiot, który wydał dokument lub notariusza. "]
[3,"Decyzja określająca kategorię obiektu hotelarskiego, nadana na podstawie art. 38 ust. 1 i 2 ustawy z dnia 29 sierpnia 1997 r. o usługach turystycznych (Dz. U. z 2014 r., poz. 196), dołączana do wniosku o płatność ostateczną - w przypadku, gdy w ramach prowadzonej działalności Beneficjent świadczy usługi hotelarskie w obiektach hotelarskich - oryginał lub kopia potwierdzona za zgodność z oryginałem przez pracownika Agencji lub podmiot, który wydał dokument lub notariusza. "]
[4,"Opinie i decyzje w zakresie wymagań weterynaryjnych, sanitarnych, ochrony środowiska, a także dotyczące warunków zdrowotnych żywności i żywienia oraz warunków ochrony zwierząt, jeżeli są wymagane przepisami prawa krajowego w odniesieniu do realizowanej operacji, dołączane do wniosku o płatność ostateczną - oryginał lub kopia potwierdzona za zgodność z oryginałem przez pracownika Agencji lub podmiot, który wydał dokument lub notariusza. "]
[null,"W tym, w przypadku operacji związanych z biogazowniami rolniczymi wymagany jest dokument potwierdzający nadanie weterynaryjnego numeru identyfikacyjnego działalności nadzorowanej przez powiatowego lekarza weterynarii. Numer ten jest wymagany dla wszystkich biogazowni rolniczych."]
[5,"Inne pozwolenia lub licencje, niezbędne do rozpoczęcia prowadzenia działalności gospodarczej, dołączane do wniosku o płatność ostateczną, jeżeli są wymagane przepisami prawa krajowego - oryginał lub kopia potwierdzona za zgodność z oryginałem przez pracownika Agencji lub podmiot, który wydał dokument lub notariusza. "]
[null,"W tym, w przypadku działalności związanych z wytwarzaniem biogazu rolniczego lub energii elektrycznej z biogazu rolniczego beneficjent powinien przedstawić: dokument potwierdzający wpis do rejestru przedsiębiorstw energetycznych i rejestru rolników zajmujących się wytwarzaniem biogazu rolniczego prowadzonego przez prezesa Agencji Rynku Rolnego lub koncesję na wytwarzanie biogazu rolniczego lub energii z biogazu rolniczego."]
[6,"Inne załączniki - jeśli dotyczy.\nW tym, w przypadku działalności związanych z wytwarzaniem biogazu rolniczego lub energii elektrycznej z biogazu rolniczego Beneficjent  powinien przedstawić umowę z właścicielem sieci przesyłowej na przyłączenie do sieci (gazowej, cieplnej lub elektrycznej) lub umowę z właścicielem sieci przesyłowej na sprzedaż energii lub biogazu rolniczego."]
["Liczba załączników (ogółem)",null,{"$f":"SUM(C3:C13)","v":0}]

{"sheet":"zał 312 oraz 413-312 szczegół","index":7,"n_rows":16,"n_cols":3,"rows_kept":16,"cut":false,"hidden":false,"merged":[[0,0,0,2],[15,0,15,1]]}
["VI. 5. Część szczegółowa dla działania 312 \"Tworzenie i rozwój mikroprzedsiębiorstw\" oraz działania 413_312 \"Wdrażanie lokalnych strategii rozwoju\" dla operacji, które odpowiadają warunkom przyznania pomocy w ramach działania \"Tworzenie i rozwój mikroprzedsiębiorstw\", objętych PROW 2007-2013."]
["LP","Nazwa załącznika","Liczba"]
[1,"Decyzje wydane przez Powiatowego Lekarza Weterynarii - kopia potwierdzona za zgodność z oryginałem przez pracownika Agencji lub podmiot, który wydał dokument lub notariusza. "]
[2,"Opinie wydane przez Powiatowego Inspektora Sanitarnego - kopia potwierdzona za zgodność z oryginałem przez pracownika Agencji lub podmiot, który wydał dokument lub notariusza. "]
[3,"Zaświadczenie Wojewódzkiego Inspektoratu Ochrony Roślin i Nasiennictwa - oryginał lub kopia potwierdzona za zgodność z oryginałem przez pracownika Agencji lub podmiot, który wydał dokument lub notariusza. "]
[4,"Informacje o spełnieniu wymagań w zakresie ochrony środowiska wydane przez Wojewódzki Inspektorat Ochrony Środowiska - kopia potwierdzona za zgodność z oryginałem przez pracownika Agencji, podmiot, który wydał dokument lub notariusza."]
[5,"Zaświadczenie o wpisie do ewidencji prowadzonej przez jednostkę samorządu terytorialnego obowiązaną do prowadzenia odpowiedniego typu szkół i placówek publicznych albo kopia zezwolenia wydanego na podstawie art. 58 ust. 3 albo art. 59a ustawy z dnia 7 września 1991 r. o systemie oświaty (Dz. U. z 2004 r. Nr 256, poz. 2572, z późn.zm.), wystawione nie wcześniej niż 3 miesiące przed złożeniem wniosku o płatność - oryginał lub kopia potwierdzona za zgodność z oryginałem przez pracownika Agencji, podmiot, który wydał dokument lub notariusza. (dotyczy działalności podlegającej przepisom o systemie oświaty):\n- dołączone do pierwszego wniosku o płatność pośrednią - dotyczy Beneficjentów podejmujących działalność gospodarczą;\n- dołączone do wniosku o płatność ostateczną - dotyczy Beneficjentów wykonujących działalność gospodarczą.\n                                                                                                                                                                                                   W związku z utworzeniem i funkcjonowaniem Centralnej Ewidencji i Informacji o Działalności Gospodarczej w odniesieniu do podmiotów podlegających właściwemu wpisowi, nie jest wymagane dostarczanie dokumentu potwierdzającego zarejestrowanie i prowadzenie działalności gospodarczej zgodnie z Polską Klasyfikacją Działalności (PKD). Agencja zweryfikuje spełnienie tego kryterium w oparciu o bazę CEIDG."]
[6,"Zaświadczenie o wpisie do ewidencji innych obiektów, o której mowa w art. 38 ust. 3 ustawy z dnia 29 sierpnia 1997 r. o usługach turystycznych (Dz. U. z 2014 r., poz. 196), dołączana do wniosku o płatność ostateczną - w przypadku, gdy w ramach prowadzonej działalności Beneficjent świadczy usługi polegające na udostępnianiu miejsc noclegowych w innych obiektach, w których mogą być świadczone usługi hotelarskie - kopia potwierdzona za zgodność z oryginałem przez pracownika Agencji, podmiot, który wydał dokument lub notariusza."]
[7,"Decyzja określająca kategorię obiektu hotelarskiego, nadaną na podstawie art. 38 ust. 1 i 2 ustawy z dnia 29 sierpnia 1997 r. o usługach turystycznych (Dz. U. z 2014 r., poz. 196), dołączana do wniosku o płatność ostateczną - w przypadku, gdy w ramach prowadzonej działalności Beneficjent świadczy usługi polegające na udostępnianiu miejsc noclegowych w obiektach hotelarskich - oryginał lub kopia potwierdzona za zgodność z oryginałem przez pracownika Agencji, podmiot, który wydał dokument lub notariusza."]
[8,"Opinie i decyzje w zakresie wymagań weterynaryjnych, sanitarnych, ochrony środowiska, a także dotyczące warunków zdrowotnych żywności i żywienia oraz warunków ochrony zwierząt, jeżeli są wymagane przepisami prawa krajowego w odniesieniu do realizowanej operacji, dołączane do wniosku o płatność ostateczną - oryginał lub kopia potwierdzona za zgodność z oryginałem przez pracownika Agencji, podmiot, który wydał dokument lub notariusza."]
[9,"Inne pozwolenia lub licencje, niezbędne do rozpoczęcia prowadzenia działalności gospodarczej - dołączane do pierwszego wniosku o płatność - jeżeli są wymagane przepisami prawa krajowego - oryginał lub kopia potwierdzona za zgodność z oryginałem przez pracownika Agencji, podmiot, który wydał dokument lub notariusza."]
[10,"Umowy o pracę z pracownikami (dla etatów powstałych w wyniku realizacji operacji) - kopia potwierdzona za zgodność z oryginałem przez pracownika Agencji lub Beneficjenta. "]
[11,"Zgłoszenia do ubezpieczeń ZUS ZUA (dla etatów powstałych w wyniku realizacji operacji) - oryginały lub kopie potwierdzone za zgodność z oryginałem przez Beneficjneta lub ZUS lub pracownika Agencji."]
[12,"Deklaracje ZUS DRA (wraz z załącznikami ZUS RCA (RCX), ZUS RSA, ZUS RZA) - oryginał lub kopia potwierdzona za zgodność z oryginałem przez Beneficjenta lub ZUS lub pracownika Agencji."]
[13,"Inne załączniki - jeśli dotyczy"]
["Liczba załączników (ogółem)",null,{"$f":"SUM(C3:C15)","v":0}]

{"sheet":"Oświadczenie","index":8,"n_rows":32,"n_cols":8,"rows_kept":32,"cut":false,"hidden":false,"merged":[[9,3,9,12],[32,2,32,13],[19,3,19,12],[26,2,29,12],[7,3,7,12],[15,7,15,11],[10,3,10,12],[13,3,13,12],[18,3,18,12],[0,0,0,14],[1,0,31,0],[1,14,31,14],[2,2,2,11],[22,12,24,12],[31,2,31,12],[4,3,4,10],[25,7,25,11],[22,7,24,11],[16,4,16,12],[25,3,25,5],[20,3,20,12],[17,4,17,12],[23,3,24,5],[11,3,11,12],[14,3,14,12]]}
[]
[]
[null,null,"VII.OŚWIADCZENIE BENEFICJENTA"]
[null,null,null,"Imię i nazwisko wpisują tylko Beneficjenci, którymi są osoby wspólne wnioskujące w ramach działania 121 "]
[]
[null,null,null,"imię i nazwisko "]
[]
[null,null,"1.\n","Oświadczam, że informacje zawarte we wniosku o płatność oraz jego załącznikach są prawdziwe i zgodne ze stanem prawnym i faktycznym oraz że znane mi są skutki składania fałszywych oświadczeń wynikające z art. 297 § 1 ustawy z dnia 6 czerwca 1997 r. Kodeks Karny (Dz. U. Nr 88, poz. 553, z późn. zm.)."]
[]
[null,null,"2.\n\n","Oświadczam, że operacja określona niniejszym wnioskiem o płatność nie była finansowana z innych środków publicznych i na jej realizację nie będą wykorzystane inne środki publiczne."]
[null,null,"3.","Oświadczam, że jestem świadomy, iż w przypadku gdy kwota pomocy wpisana we wniosku o płatność będzie przekraczała kwotę pomocy wynikającą z prawidłowo poniesionych kosztów (obliczoną po weryfikacji wniosku o płatność) o więcej niż 3%, Agencja zastosuje zmniejszenie zgodnie z przepisami wspólnotowymi*."]
[null,null,"4.","Oświadczam, że jestem świadomy, iż w przypadku stwierdzenia umyślnego złożenia fałszywych oświadczeń, daną operację wyklucza się ze wsparcia EFRROW i odzyskuje się wszystkie kwoty, które już zostały wypłacone na tę operację wraz z należnymi odsetkami oraz, że zostanę wykluczony z otrzymywania wsparcia w ramach tego samego działania w roku kalendarzowym, w którym dokonano ustalenia, oraz w następnym roku kalendarzowym**."]
[]
[null,null,"5.","Oświadczam, iż w stosunku do mnie/reprezentowanego przeze mnie Beneficjenta nie istnieją przesłanki ogłoszenia likwidacji lub upadłości. "]
[null,null,"6.","Przyjmuję do wiadomości, iż:"]
[]
[null,null,null,"a)","zebrane dane osobowe będą przetwarzane przez Agencję Restrukturyzacji i Modernizacji Rolnictwa z siedzibą: 00-175 Warszawa, Al. Jana Pawła II 70,  zgodnie z przepisami ustawy z dnia 29 sierpnia 1997 r. o ochronie danych osobowych (Dz.U. z 2002 r. Nr 101, poz. 926, z późn. zm.) w celu przyznania pomocy finansowej i płatności w ramach działania, z którego  Beneficjent ubiegał się o wsparcie składając wniosek o przyznanie pomocy,"]
[null,null,null,"b)","przysługuje mi, jako osobie fizycznej, prawo wglądu do moich danych osobowych oraz do ich poprawiania."]
[null,null,"7. ","Przyjmuję do wiadomości, że dane Beneficjenta mogą być przetwarzane przez organy audytowe i dochodzeniowe Unii Europejskiej i państw członkowskich dla zabezpieczenia interesów finansowych Unii."]
[null,null,"8. ","Przyjmuję do wiadomości, że informacja o przyznaniu Beneficjentowi pomocy z publicznych środków finansowych, w tym przyznana kwota płatności z tytułu udzielonej pomocy w ramach działania, z którego Beneficjent ubiegał się o wsparcie składając wniosek o przyznanie pomocy,  zostanie opublikowana na stronie internetowej MRiRW."]
[]
[]
[]
[]
[]
[null,null,null,"(data)\n",null,null,null,"(podpis Beneficjenta/osoby reprezentującej Beneficjenta/pełnomocnika Beneficjenta)"]
[null,null,"* Art. 30 ust. 1 rozporządzenia Komisji (UE) nr 65/2011 z dnia 27 stycznia 2011 r. ustanawiającego szczegółowe zasady wykonania rozporządzenia Rady (WE) nr 1698/2005 w odniesieniu do wprowadzenia procedur kontroli oraz do zasady wzajemnej zgodności w zakresie środków wsparcia rozwoju obszarów wiejskich (Dz. Urz. L 25 z 28.01.2011 r., str. 8 z późn. zm.”);"]
[]
[]
[]
[]
[null,null,"** Art. 30 ust. 2 rozporządzenia Komisji (UE) nr 65/2011 z dnia 27 stycznia 2011 r. ustanawiającego szczegółowe zasady wykonania rozporządzenia Rady (WE) nr 1698/2005 w odniesieniu do wprowadzenia procedur kontroli oraz do zasady wzajemnej zgodności w zakresie środków wsparcia rozwoju obszarów wiejskich (Dz. Urz. L 25 z 28.01.2011r., str. 8 z późn. zm.”);"]

{"sheet":"Arkusz1","index":9,"n_rows":0,"n_cols":0,"rows_kept":0,"cut":false,"hidden":true,"merged":[]}

{"sheet":"Arkusz2","index":10,"n_rows":0,"n_cols":0,"rows_kept":0,"cut":false,"hidden":true,"merged":[]}